{"text_format":"1","workbook":"xlsx","n_sheets":3,"sheets":["Relació de despeses","Relació d'ingressos ","despeses i ingressos"],"not_rendered":{"charts":0,"images":2,"macros":1,"external_links":0,"defined_names":8,"comments":3,"pivot_tables":0},"unopened":[],"bounds":{"document_bytes":16777216,"sheet_cells":100000,"rows_first":2000,"rows_last":500,"rows_between":2000,"halvings":0,"cell_chars":16384,"cell_head_chars":4096},"cells_cut":0,"cells_raw":0,"read":"whole","date_system":"1900"}

{"sheet":"Relació de despeses","index":0,"n_rows":161,"n_cols":10,"rows_kept":161,"cut":false,"hidden":false,"merged":[[125,0,125,10],[54,0,54,10],[55,9,55,10],[56,9,56,10],[57,9,57,10],[58,9,58,10],[59,0,59,6],[59,9,59,10],[37,9,37,10],[103,9,103,10],[104,0,104,10],[105,9,105,10],[110,0,110,10],[111,9,111,10],[120,9,120,10],[121,0,121,6],[121,9,121,10],[122,0,122,2],[122,3,122,6],[122,9,122,10],[112,9,112,10],[113,9,113,10],[114,9,114,10],[115,0,115,6],[126,0,127,9],[135,0,135,10],[137,0,137,10],[138,0,138,10],[139,0,139,10],[140,0,140,10],[51,9,51,10],[50,9,50,10],[123,0,123,5],[123,9,123,10],[106,9,106,10],[107,9,107,10],[108,9,108,10],[109,0,109,6],[109,9,109,10],[94,9,94,10],[95,9,95,10],[96,9,96,10],[97,0,97,6],[97,9,97,10],[98,0,98,10],[99,9,99,10],[102,9,102,10],[103,0,103,6],[22,9,22,10],[23,0,23,6],[23,9,23,10],[24,0,24,10],[25,9,25,10],[48,0,48,10],[36,0,36,10],[42,0,42,10],[26,9,26,10],[27,9,27,10],[28,9,28,10],[29,0,29,6],[29,9,29,10],[33,9,33,10],[39,9,39,10],[38,9,38,10],[47,9,47,10],[46,9,46,10],[45,9,45,10],[115,9,115,10],[116,0,116,10],[117,9,117,10],[118,9,118,10],[119,9,119,10],[101,9,101,10],[86,0,86,10],[87,9,87,10],[88,9,88,10],[89,9,89,10],[90,9,90,10],[91,0,91,6],[91,9,91,10],[92,0,92,10],[93,9,93,10],[100,9,100,10],[79,0,79,6],[79,9,79,10],[80,0,80,10],[81,9,81,10],[82,9,82,10],[83,9,83,10],[84,9,84,10],[85,0,85,6],[85,9,85,10],[71,9,71,10],[72,9,72,10],[73,0,73,6],[73,9,73,10],[75,9,75,10],[76,9,76,10],[77,9,77,10],[78,9,78,10],[74,0,74,10],[60,0,60,2],[60,3,60,6],[60,9,60,10],[61,0,61,8],[62,0,62,10],[67,0,67,6],[67,9,67,10],[69,9,69,10],[70,9,70,10],[63,9,63,10],[68,0,68,10],[66,9,66,10],[49,9,49,10],[53,9,53,10],[52,9,52,10],[35,0,35,6],[41,0,41,6],[30,0,30,10],[7,9,7,10],[8,9,8,10],[10,0,10,10],[15,9,15,10],[32,9,32,10],[31,9,31,10],[7,3,7,4],[53,0,53,6],[35,9,35,10],[34,9,34,10],[16,9,16,10],[43,9,43,10],[41,9,41,10],[40,9,40,10],[19,9,19,10],[21,9,21,10],[44,9,44,10],[47,0,47,6],[12,9,12,10],[17,0,17,10],[18,9,18,10],[0,0,0,10],[4,0,4,1],[16,0,16,6],[2,2,2,3],[3,2,3,3],[4,2,4,3],[11,9,11,10],[2,0,2,1],[2,4,2,6],[3,4,3,6],[4,4,4,6],[7,2,8,2],[2,7,2,8],[3,7,3,8],[4,7,4,8],[9,0,9,8],[3,0,3,1],[7,1,8,1],[7,0,8,0],[6,0,6,4],[159,0,159,10],[160,0,160,10],[131,1,131,2],[150,0,150,10],[151,0,151,10],[152,0,152,10],[153,0,153,10],[154,0,154,10],[155,0,155,10],[156,0,156,10],[157,0,157,10],[158,0,158,10],[141,0,141,10],[142,0,142,10],[143,0,143,10],[144,0,144,10],[145,0,145,10],[146,0,146,10],[147,0,147,10],[148,0,148,10],[149,0,149,10]]}
["Relació classificada de totes les despeses realitzades per a l'execució de l'activitat  subvencionada"]
[]
["Persona física/jurídica beneficiària:         ",null,null,null,"Import total del projecte:",null,null,null,null,"euros"]
["Codi de subvenció:",null,null,null,"Import de la subvenció atorgada:",null,null,null,null,"euros"]
["Nom del projecte subvencionat:",null,null,null,"Període d'execució del projecte subvencionat:",null,null,null,null,"a"]
[]
["Despeses del projecte/activitat/servei subvencionat (*)"]
["Núm. d'ordre (0)","Número de document: justificants despesa personal (1), factura o rebut/tiquet(2)","Concepte de la factura / \ndocument probatori equivalent","Emissor/a de la factura",null,"Data d'emissió","Import total de la factura","Import imputable (dedicat) al projecte (3)","Import imputable a la subvenció municipal (4)","Observacions"]
[null,null,null,"NIF","Nom","dd/mm/aaaa","euros","euros","euros"]
["DESPESES DIRECTES (Aquelles que s'identifiquen directament amb el projecte)"]
["D1.  - Retribucions i seguretat social (règim general o règim d’autònoms) del personal propi  vinculat/da al projecte"]
[]
[]
[]
[]
[]
["Subtotal D1",null,null,null,null,null,null,{"$f":"SUM(H12:H16)","v":0},{"$f":"SUM(I12:I16)","v":0}]
["D2.  Treballs realitzats per professionals i empreses externes directament vinculades a l’acompanyament de processos de l’entitat i amb les seves associades"]
[]
[]
[]
[]
[]
["Subtotal D2",null,null,null,null,null,null,{"$f":"SUM(H19:H23)","v":0},{"$f":"SUM(I19:I23)","v":0}]
["D3.  Lloguer de bens immobles directament vinculats al projecte"]
[]
[]
[]
[]
["Subtotal D3",null,null,null,null,null,null,{"$f":"SUM(H26:H29)","v":0},{"$f":"SUM(I26:I29)","v":0}]
["D4.  Adquisició de materials i béns consumibles íntegrament imputables al projecte"]
[]
[]
[]
[]
["Subtotal D4",null,null,null,null,null,null,{"$f":"SUM(H32:H35)","v":0},{"$f":"SUM(I32:I35)","v":0}]
["D5.  Publicitat i propaganda de les activitats directament vinculades al projecte"]
[]
[]
[]
[]
["Subtotal D5",null,null,null,null,null,null,{"$f":"SUM(H38:H41)","v":0},{"$f":"SUM(I38:I41)","v":0}]
["D6.  Viatges i desplaçaments imputables a les activitats del projecte"]
[]
[]
[]
[]
["Subtotal D6",null,null,null,null,null,null,{"$f":"SUM(H44:H47)","v":0},{"$f":"SUM(I44:I47)","v":0}]
["D7.  Despeses de l’informe d’auditoria"]
[]
[]
[]
[]
["Subtotal D7",null,null,null,null,null,null,{"$f":"SUM(H50:H53)","v":0},{"$f":"SUM(I50:I53)","v":0}]
["D8.  Altres despeses que de manera justificada puguin imputar-se directament al projecte"]
[]
[]
[]
[]
["Subtotal D8",null,null,null,null,null,null,{"$f":"SUM(H56:H59)","v":0},{"$f":"SUM(I56:I59)","v":0}]
["TOTAL DESPESES DIRECTES ",null,null,"TOTAL DESPESES DIRECTES",null,null,null,{"$f":"+H17+H36+H42+H48+H54+H30+H24+H60","v":0},{"$f":"+I17+I36+I42+I48+I54+I30+I24+I60","v":0}]
["DESPESES INDIRECTES (no es poden assignar directament al projecte sense fer servir algun % d'assignació)"]
["I.1 Personal de suport al projecte (Nòmines i seguretat social)"]
[]
[]
[]
[]
["Subtotal I1",null,null,null,null,null,null,{"$f":"SUM(H64:H67)","v":0},{"$f":"SUM(I64:I67)","v":0}]
["I.2  Assegurances"]
[]
[]
[]
[]
["Subtotal I2",null,null,null,null,null,null,{"$f":"SUM(H70:H73)","v":0},{"$f":"SUM(I70:I73)","v":0}]
["I.3  Amortització"]
[]
[]
[]
[]
["Subtotal I3",null,null,null,null,null,null,{"$f":"SUM(H76:H79)","v":0},{"$f":"SUM(I76:I79)","v":0}]
["I.4  Lloguer de béns immobles"]
[]
[]
[]
[]
["Subtotal I4",null,null,null,null,null,null,{"$f":"SUM(H82:H85)","v":0},{"$f":"SUM(I82:I85)","v":0}]
["I.5  Adquisició de materials i béns consumibles parcialment imputables al projecte"]
[]
[]
[]
[]
["Subtotal I5",null,null,null,null,null,null,{"$f":"SUM(H88:H91)","v":0},{"$f":"SUM(I88:I91)","v":0}]
["I.6  Manteniment d’edificis i/o instal·lacions"]
[]
[]
[]
[]
["Subtotal I6",null,null,null,null,null,null,{"$f":"SUM(H94:H97)","v":0},{"$f":"SUM(I94:I97)","v":0}]
["I.7  Comunicacions (telèfon, correus, connexió a internet)"]
[]
[]
[]
[]
["Subtotal I7",null,null,null,null,null,null,{"$f":"SUM(H100:H103)","v":0},{"$f":"SUM(I100:I103)","v":0}]
["I.8  Despeses financeres"]
[]
[]
[]
[]
["Subtotal I8",null,null,null,null,null,null,{"$f":"SUM(H106:H109)","v":0},{"$f":"SUM(I106:I109)","v":0}]
["I.9  Subministraments "]
[]
[]
[]
[]
["Subtotal I9",null,null,null,null,null,null,{"$f":"SUM(H112:H115)","v":0},{"$f":"SUM(I112:I115)","v":0}]
["I.10  Treball realitzat per altres empreses, parcialment imputables al projecte (neteja, seguretat...)"]
[]
[]
[]
[]
["Subtotal I10",null,null,null,null,null,null,{"$f":"SUM(H118:H121)","v":0},{"$f":"SUM(I118:I121)","v":0}]
["TOTAL DESPESES INDIRECTES ",null,null,"TOTAL DESPESES INDIRECTES",null,null,null,{"$f":"+H68+H74+H80+H86+H92+H98+H104+H110+H116+H122","v":0},{"$f":"+I68+I74+I80+I86+I92+I98+I104+I110+I116+I122","v":0}]
["TOTAL DESPESES",null,null,null,null,null,"TOTAL",{"$f":"+H123+H61","v":0},{"$f":"+I123+I61","v":0}]
[]
["El Sr./Sra. (indicar el nom i cognoms de la persona representant que signa la justificació)  amb DNI/NIE (indicar el núm. DNI) en qualitat de persona física beneficiària o representant legal de la persona jurídica beneficiària (indicar nom i cognoms) amb NIF (indicar núm DNI)."]
["CERTIFICA que les despeses imputades al projecte/activitat/servei subvencionat han estat efectivament efectuades; que custodiarà la documentació suport que ho acredita; que  aquesta documentació es troba a disposició de l'Ajuntament de Barcelona o dels altres ens municipals en els arxius d'aquesta Entitat, durant un període mínim de 4 anys a comptar des de la data de presentació de la present justificació."]
[]
[]
[]
[]
[null,"Població i data: ",null,null,"Signatura i segell (en cas de registre físic)"]
[]
[]
["Notes:"]
["(*) S'han de relacionar totes les despeses del projecte/activitat/servei subvencionat. En el cas que el nombre de files de cada concepte sigui insuficient podeu inserir línies dins del mateix concepte seleccionant una cel·la verda i fent clic sobre el botó d'inserir línia."]
["(0) El número d'ordre ha de ser correlatiu començant per D.1.1, D.1.2, D.1.3, D.2.4, etc."]
["(1) Respecte a les despeses de recursos humans, pot ser subvencionable el cost total salarial mensual, que correspon a la suma de la retribució bruta que apareix a la nòmina del treballador/a més la quota de l'empresa a la Seg. Social. Les despeses de personal es justifiquen amb la nòmina del treballador/a acompanyada dels corresponents TC1 i TC2 de la TGSS i el model 111 de l'IRPF."]
["(2) En el cas que el document justificatiu de la resta de despeses, no sigui una factura, sinó un altre document probatori equivalent, com un rebut o justificant (com per dietes o transport públic), indiqueu-lo en la columna \"observacions\"."]
["(3) En el cas que un justificant inclogui conceptes que no tenen a veure amb el projecte/activitat/servei per al qual s'ha atorgat la subvenció, aquí només s'ha d'indicar la part que realment s'ha dedicat al projecte."]
["(4) En aquesta columna s'ha d'indicar l'import total o parcial de la factura  que s'imputa a la subvenció rebuda de l'Ajuntament de Barcelona. El total imputat, en aquesta columna, ha de ser igual  a l'import de la subvenció rebuda."]
["Modalitat Ba: Intercooperació de 2n i major nivell: Projectes promoguts per entitats de l'Economia Social i Solidària o de les finances ètiques de segon nivell i superior, que contribueixin al desplegament de l’Estratègia BCN 2030 d’ESS de Barcelona, i tinguin per destinatàries a les seves entitats sòcies"]
["1.  La quantia de la subvenció atorgada no superarà el 80% de la despesa total del projecte a subvencionar. "]
["2.  L'import màxim de subvenció per a la modalitat \"a\" de l’àmbit temàtic B d'Interccoperació és 35.000,00 €."]
["3.  En el cas que la sol·licitud presentada sobrepassi l’import màxim, es considerarà com a import sol·licitat el màxim de l'establert a la convocatòria."]
["4.  Es limita amb un màxim del 25% l’import de la subvenció per a despeses de personal propi assignat al projecte."]
["5.  Les despeses indirectes imputades al projecte detallades, no podran superar el 10% de l’import de la subvenció."]
["6.  El caràcter subvencionable de la despesa d'amortització estarà subjecte a les condicions següents:"]
["- Que les subvencions no hagin contribuït a la compra dels béns."]
["- Que l'amortització es calculi de conformitat amb les normes de comptabilitat generalment acceptades."]
["- Que el cost es refereixi al període subvencionable."]
["7.  Quan s'hagi de fer despeses de més de 12.000 €, sense IVA, en el cas de prestacions de serveis o lliurament de béns i per aquelles despeses de més de 30.000 €,  sense IVA, en el cas d'execució d'obres, hauran d'incorporar tres pressupostos sol·licitats i argumentar el motiu de l'adjudicació en el cas de no ser la proposta més avantatjosa econòmicament."]
["8.  En cap cas es consideraran despeses subvencionables:"]
["- Els impostos indirectes quan siguin susceptibles de recuperació o compensació, ni els impostos sobre la renda."]
["- Les despeses d'inversió, incloses les adquisicions de béns mobles."]
["- Les despeses realitzades amb data anterior a l'inici del projecte i data posterior a la finalització del projecte."]
["- Altres despeses que s'indiquin a la convocatòria."]
["9. Per les subvencions atorgades per import igual o superior a 20.000 € és necessari un informe d'auditoria per a la justificació. "]
["10. L'import d'aquest informe es considera despesa subvencionable, amb un límit màxim de 1.500 €."]
["11. Els salaris percebuts per les persones contractades en el marc del projecte subvencionat no siguin inferiors a 1.088,56€ bruts mensuals (13.062,72€ bruts en còmput anual) en el cas de jornades completes, o la part proporcional en el cas de jornades parcials (punt 7 de les bases 2019: Requisits dels projectes)."]
["12. Els materials produïts de difusió, estudis, informes o materials didàctics utilitzats, etc. en el cas de tractar-se de despesa elegible de la subvenció, hauran de tenir llicència Creative Commons -Compartir Igual- (share alike) i no podrà tenir la condició –Sense Obres Derivades- (no derivate Works)."]

{"sheet":"Relació d'ingressos ","index":1,"n_rows":77,"n_cols":10,"rows_kept":77,"cut":false,"hidden":false,"merged":[[50,0,50,3],[12,6,12,9],[24,6,24,9],[48,6,48,9],[19,6,19,9],[18,6,18,9],[17,6,17,9],[16,6,16,9],[34,6,34,9],[44,6,44,9],[43,6,43,9],[42,6,42,9],[14,6,14,9],[20,6,20,9],[29,6,29,9],[28,6,28,9],[44,0,44,3],[26,0,26,3],[50,6,50,9],[49,6,49,9],[20,0,20,3],[45,0,45,9],[47,6,47,9],[46,6,46,9],[26,6,26,9],[25,6,25,9],[23,6,23,9],[22,6,22,9],[36,6,36,9],[35,6,35,9],[41,6,41,9],[40,6,40,9],[27,0,27,9],[33,0,33,9],[39,0,39,9],[38,0,38,3],[32,0,32,3],[37,6,37,9],[30,6,30,9],[32,6,32,9],[31,6,31,9],[38,6,38,9],[0,0,0,9],[9,0,9,9],[15,0,15,9],[21,0,21,9],[7,6,8,9],[10,6,10,9],[11,6,11,9],[7,0,8,0],[13,6,13,9],[3,2,3,3],[2,2,2,3],[6,0,6,3],[4,2,4,3],[7,2,7,3],[7,1,8,1],[14,0,14,3],[51,0,51,9],[57,0,57,9],[56,6,56,9],[58,6,58,9],[56,0,56,3],[53,6,53,9],[52,6,52,9],[72,1,72,2],[64,6,64,9],[59,6,59,9],[66,6,66,9],[60,6,60,9],[61,6,61,9],[62,6,62,9],[63,6,63,9],[66,0,66,3],[65,0,65,3],[65,6,65,9],[68,0,68,9],[69,0,70,9]]}
["Detall de tots els ingressos obtinguts i aportacions del propi beneficiari per a l'execució de l'activitat subvencionada"]
[]
[null,"Nom de la persona física/jurídica beneficiària:        ",{"$f":"IF('Relació de despeses'!C3:D3<>\"\",'Relació de despeses'!C3:D3,\"\")","v":""},null,"Import total del projecte :",null,null,{"$f":"IF(+'Relació de despeses'!H3=\"\",\"\",+'Relació de despeses'!H3)","v":""},"euros"]
[null,"Codi de subvenció",{"$f":"IF('Relació de despeses'!C4:D4<>\"\",'Relació de despeses'!C4:D4,\"\")","v":""},null,"Import de la subvenció atorgada:",null,null,{"$f":"IF(+'Relació de despeses'!H4=\"\",\"\",+'Relació de despeses'!H4)","v":""},"euros"]
[null,"Nom del projecte subvencionat",{"$f":"IF('Relació de despeses'!C5:D5<>\"\",'Relació de despeses'!C5:D5,\"\")","v":""},null,"Període d'execució del projecte subvencionat:",null,null,{"$f":"IF(+'Relació de despeses'!H5=\"\",\"\",+'Relació de despeses'!H5)","v":""},"a",{"$f":"IF(+'Relació de despeses'!K5=\"\",\"\",+'Relació de despeses'!K5)","v":""}]
[]
["Ingressos del projecte/activitat/servei subvencionat"]
["núm. d'ordre (0)","Concepte de l'ingrés","Emissor/a de l'ingrés",null,"Data de cobrament\n(dd/mm/aaaa)","Import","Observacions"]
[null,null,"NIF","Nom","(1)","euros"]
["A. Subvenció municipal "]
[]
[]
[]
[]
[null,null,null,null,"Subtotal A",{"$f":"SUM(F11:F14)","v":0}]
["B. Subvencions d'altres administracions"]
[]
[]
[]
[]
[null,null,null,null,"Subtotal B",{"$f":"SUM(F17:F20)","v":0}]
["C. Subvencions d'ens privats"]
[]
[]
[]
[]
[null,null,null,null,"Subtotal C",{"$f":"SUM(F23:F26)","v":0}]
["D. Recursos propis de l'entitat aplicats al projecte"]
[]
[]
[]
[]
[null,null,null,null,"Subtotal D",{"$f":"SUM(F29:F32)","v":0}]
["E. Taquillatge"]
[]
[]
[]
[]
[null,null,null,null,"Subtotal E",{"$f":"SUM(F35:F38)","v":0}]
["F. Quotes d'inscripció"]
[]
[]
[]
[]
[null,null,null,null,"Subtotal F",{"$f":"SUM(F41:F44)","v":0}]
["G. Venda de Productes"]
[]
[]
[]
[]
[null,null,null,null,"Subtotal G",{"$f":"SUM(F47:F50)","v":0}]
["H. Publicitat i/o Esponsorització"]
[]
[]
[]
[]
[null,null,null,null,"Subtotal H",{"$f":"SUM(F53:F56)","v":0}]
["I. Altres ingressos"]
[]
[]
[]
[]
[]
[]
[]
[null,null,null,null,"Subtotal I",{"$f":"SUM(F59:F65)","v":0}]
["Total INGRESSOS",null,null,null,"TOTAL",{"$f":"+F15+F21+F27+F33+F39+F45+F51+F57+F66","v":0}]
[]
[{"$f":"'Relació de despeses'!A126:K126","v":"El Sr./Sra. (indicar el nom i cognoms de la persona representant que signa la justificació)  amb DNI/NIE (indicar el núm. DNI) en qualitat de persona física beneficiària o representant legal de la persona jurídica beneficiària (indicar nom i cognoms) amb NIF (indicar núm DNI)."}]
["CERTIFICA que els ingressos imputats al projecte/activitat/servei subvencionat han estat efectivament ingressats; que custodiarà la documentació suport que ho acredita; que  aquesta documentació es troba a disposició de l'Ajuntament de Barcelona o dels altres ens municipals en els arxius d'aquesta Entitat, durant un període mínim de 4 anys a comptar des de la data de presentació de la present justificació."]
[]
[]
[null,"Població i data: ",null,null,"Signatura i segell (en cas de registre físic)"]
[]
[null,"Nota:"]
[null,"(0) El número d'ordre ha de ser correlatiu començant pel número A1, A2, A3, B4, etc."]
[null,"(1) En cas que l'ingrés estigui pendent cobrament, indicar \"P. Cobrament\" "]

{"sheet":"despeses i ingressos","index":2,"n_rows":50,"n_cols":11,"rows_kept":50,"cut":false,"hidden":false,"merged":[[10,8,11,8],[36,0,36,9],[26,8,26,9],[34,7,35,10],[26,6,26,7],[37,0,38,9],[40,1,40,2],[43,0,43,10],[48,0,48,10],[6,0,6,1],[6,2,6,3],[9,0,9,1],[9,6,9,7],[10,9,11,9],[10,0,11,1],[10,2,11,2],[10,3,11,3],[10,6,11,7],[21,2,22,2],[21,3,22,3],[25,6,25,7],[49,0,49,10],[44,0,44,10],[45,0,45,10],[46,0,46,10],[47,0,47,10],[4,0,4,1],[4,2,4,3],[4,5,4,6],[5,0,5,1],[5,2,5,3],[5,5,5,6]]}
[]
[]
["Estat de les despeses realitzades i dels ingressos obtinguts per a l'execució de l'activitat subvencionada (*)"]
[]
["Nom de la persona física/jurídica beneficiària:         ",null,{"$f":"IF('Relació de despeses'!C3:D3<>\"\",'Relació de despeses'!C3:D3,\"\")","v":""},null,null,"Import total del projecte:",null,{"$f":"'Relació d''ingressos '!H3","v":""},"euros"]
["Codi de subvenció:",null,{"$f":"IF('Relació de despeses'!C4:D4<>\"\",'Relació de despeses'!C4:D4,\"\")","v":""},null,null,"Import de la subvenció atorgada:",null,{"$f":"'Relació d''ingressos '!H4","v":""},"euros"]
["Nom del projecte subvencionat:",null,{"$f":"IF('Relació de despeses'!C5:D5<>\"\",'Relació de despeses'!C5:D5,\"\")","v":""},null,null,"Període d'execució del projecte subvencionat:",null,null,{"$f":"'Relació d''ingressos '!H5","v":""},"a",{"$f":"'Relació d''ingressos '!J5","v":""}]
[]
["SUBVENCIONS PER A LA PROMOCIÓ I REFORÇ DE L'ECONOMIA SOCIAL I SOLIDÀRIA 2020"]
["DESPESES PREVISTES",null,"import en euros",null,null,null,"INGRESSOS PREVISTOS",null,"import en euros"]
["Despeses directes \n(aquelles que s'identifiquen directament amb el projecte)",null,"Previsió inicial o reformulada ja aprovada (1)","Despeses realitzades (2)","Diferència\n",null,"Ingressos previstos",null,"Previsió inicial (1)","Ingressos obtinguts (3)"]
[null,null,null,null,"(2-1)"]
[null,"D1.  - Retribucions i seguretat social (règim general o règim d’autònoms) del personal propi  vinculat/da al projecte",null,{"$f":"'Relació de despeses'!H17","v":0},{"$f":"+C13-D13","v":0},null,"A.","Subvenció municipal (import sol·licitat a la instància/atorgat)",null,{"$f":"'Relació d''ingressos '!F15","v":0}]
[null,"D2.  Treballs realitzats per professionals i empreses externes directament vinculades a l’acompanyament de processos de l’entitat i amb les seves associades",null,{"$f":"'Relació de despeses'!H24","v":0},0,null,"B.","Subvencions d'altres administracions",null,{"$f":"'Relació d''ingressos '!F21","v":0}]
[null,"D3.  Lloguer de bens immobles directament vinculats al projecte",null,{"$f":"'Relació de despeses'!H30","v":0},0,null,"C.","Subvencions d'ens privats",null,{"$f":"'Relació d''ingressos '!F27","v":0}]
[null,"D4.  Adquisició de materials i béns consumibles íntegrament imputables al projecte",null,{"$f":"'Relació de despeses'!H36","v":0},0,null,"D.","Recursos propis de l'entitat aplicats al projecte",null,{"$f":"'Relació d''ingressos '!F33","v":0}]
[null,"D5.  Publicitat i propaganda de les activitats directament vinculades al projecte",null,{"$f":"'Relació de despeses'!H42","v":0},0,null,"E.","Taquillatge",null,{"$f":"'Relació d''ingressos '!F39","v":0}]
[null,"D6.  Viatges i desplaçaments imputables a les activitats del projecte",null,{"$f":"'Relació de despeses'!H48","v":0},0,null,"F.","Quotes d'inscripció",null,{"$f":"'Relació d''ingressos '!F45","v":0}]
[null,"D7.  Despeses de l’informe d’auditoria",null,{"$f":"'Relació de despeses'!H54","v":0},0,null,"G.","Venda de Productes",null,{"$f":"'Relació d''ingressos '!F51","v":0}]
[null,"D8.  Altres despeses que de manera justificada puguin imputar-se directament al projecte",null,{"$f":"'Relació de despeses'!H60","v":0},0,null,"H","Publicitat i/o Esponsorització",null,{"$f":"'Relació d''ingressos '!F57","v":0}]
[null,"Total Despeses Directes   ",{"$f":"SUM(C13:C20)","v":0},{"$f":"SUM(D13:D20)","v":0},{"$f":"SUM(E13:E20)","v":0},null,"I.","Altres ingressos",null,{"$f":"'Relació d''ingressos '!F66","v":0}]
[null,"Despeses indirectes ","Previsió inicial o reformulada ja aprovada (1)","Despeses realitzades (2)","Diferència\n",null,null,"Total Ingressos",{"$f":"SUM(I13:I21)","v":0},{"$f":"SUM(J13:J21)","v":0}]
[null,null,null,null,"(2-1)"]
[null,"I.1 Personal de suport al projecte (Nòmines i seguretat social)",null,{"$f":"'Relació de despeses'!H68","v":0},{"$f":"+C24-D24","v":0}]
[null,"I.2  Assegurances",null,{"$f":"'Relació de despeses'!H74","v":0},0]
[null,"I.3  Amortització",null,{"$f":"'Relació de despeses'!H80","v":0},0,null,"Ingressos menys despeses ",null,{"$f":"+I22-C35","v":0},{"$f":"+J22-D35","v":0}]
[null,"I.4  Lloguer de béns immobles",null,{"$f":"'Relació de despeses'!H86","v":0},0,null,"Desviació de Despeses (4)",null,"Desviació d'ingressos (4)"]
[null,"I.5  Adquisició de materials i béns consumibles parcialment imputables al projecte",null,{"$f":"'Relació de despeses'!H92","v":0},0,null,"Import"," % ","Import","%"]
[null,"I.6  Manteniment d’edificis i/o instal·lacions",null,{"$f":"'Relació de despeses'!H98","v":0},0,null,{"$f":"D35-C35","v":0},{"$f":"D35/C35","v":{"$error":"#DIV/0!"}},{"$f":"J22-I22","v":0},{"$f":"J22/I22","v":{"$error":"#DIV/0!"}}]
[null,"I.7  Comunicacions (telèfon, correus, connexió a internet)",null,{"$f":"'Relació de despeses'!H104","v":0},0,null,null,null,"% subvencionat inicialment o després de reformulació (5)",{"$f":"I13/I22","v":{"$error":"#DIV/0!"}}]
[null,"I.8  Despeses financeres",null,{"$f":"'Relació de despeses'!H110","v":0},0,null,null,null,"% subvencionat després de justificació (6)",{"$f":"+J13/J22","v":{"$error":"#DIV/0!"}}]
[null,"I.9  Subministraments ",null,{"$f":"'Relació de despeses'!H116","v":0},0]
[null,"I.10  Treball realitzat per altres empreses, parcialment imputables al projecte (neteja, seguretat...)",null,{"$f":"'Relació de despeses'!H122","v":0},0]
[null,"Total Despeses Indirectes   ",{"$f":"SUM(C24:C33)","v":0},{"$f":"SUM(D24:D33)","v":0},{"$f":"SUM(E24:E33)","v":0}]
[null,"Total Despeses ",{"$f":"+C21+C34","v":0},{"$f":"+D21+D34","v":0},{"$f":"+E34+E21","v":0}]
[]
["El Sr./Sra. (indicar el nom i cognoms de la persona representant que signa la justificació)  amb DNI/NIE (indicar el núm. DNI) en qualitat de persona física beneficiària o representant legal de la persona jurídica beneficiària (indicar nom i cognoms) amb NIF (indicar núm DNI)."]
["CERTIFICA que els ingressos imputats al projecte/activitat/servei subvencionat han estat efectivament ingressats; que custodiarà la documentació suport que ho acredita; que  aquesta documentació es troba a disposició de l'Ajuntament de Barcelona o dels altres ens municipals en els arxius d'aquesta Entitat, durant un període mínim de 4 anys a comptar des de la data de presentació de la present justificació."]
[]
[]
[null,"Població i data: ",null,null,"Signatura i segell (en cas de registre físic)"]
[]
["Notes:"]
["(*) Les columnes ombrejades en color  s'aniran emplenant automàticament a partir de les dades introduïdes en els documents de despeses -detall i ingressos-detall. Per tant, no imprimiu aquest full fins haver emplenat els altres."]
["(1) Previsió inicial o reformulació ja aprovada= S'han d'indicar la previsió inicial de despeses i d'ingressos segons allò que es va indicar al projecte original en el \"pla de viabilitat econòmica del projecte - pressupost general\" . En cas que ja s'hagi aprovat una reformulació, s'han d'indicar les quantitats reformulades. "]
["(2) Despeses reals = Cost real total del projecte subvencionat. Automàticament s'introduiran els subtotals de les despeses relacionades al full Despeses-detall."]
["(3) Ingresos reals = Total d'ingressos obtinguts per a la realització del projecte subvencionat. Automàticament s'introduiran els subtotals dels ingressos relacionats al full Ingressos-detall."]
["(4) Desviació: En el cas de les despeses, la desviació és la diferència entre despeses reals i la previsió inicial de despeses; i en el cas d'ingressos, la diferència entre els ingressos reals i la previsió inicial d'ingressos. "]
["(5) % finançament municipal = percentatge que suposen les subvencions municipals (A) respecte del  total d'ingressos del projecte subvencionat."]
["(6) El % de la desviació final de despeses es calcula dividint l'import resultant de despeses reals - despeses previstes, entre el total de despeses previstes i de la mateixa manera els ingressos, En cas d'existir una desviació sempre s'ha de motivar."]